bitfinex/quotes_BTCUSD_20250308
["timestamp","ask_amount","ask_price","bid_price","bid_amount"]
[1741463504609,0.196164,86662.0,86658.0,0.00805227]
[1741463504955,0.196159,86664.0,86657.0,0.13008]
[1741463505324,0.011539,86662.0,86658.0,0.00805227]
[1741463505844,0.011539,86662.0,86657.0,0.13008]
[1741463506052,0.011539,86661.0,86657.0,0.13008]
[1741463506400,0.011539,86659.0,86658.0,0.00805227]
[1741463506799,0.311539,86659.0,86658.0,0.00805227]
[1741463509068,0.312539,86659.0,86658.0,0.00805227]
[1741463509991,0.330647,86659.0,86658.0,0.00805227]
[1741463514376,0.3308171,86659.0,86658.0,0.00805227]
[1741463514779,0.196229,86633.0,86632.0,0.00040634]
[1741463514939,0.011543,86626.0,86624.0,0.12908]
[1741463515139,0.011544,86625.0,86624.0,0.12908]
[1741463515572,0.011543,86626.0,86624.0,0.12908]
[1741463515767,0.196245,86626.0,86624.0,0.12908]
[1741463515968,0.011544,86625.0,86624.0,0.12908]
[1741463516192,0.011544,86625.0,86624.0,0.13208]
[1741463516396,0.011544,86625.0,86624.0,0.12908]
[1741463516819,0.011544,86625.0,86624.0,0.13146625]
[1741463517181,0.02506387,86625.0,86624.0,0.00038625]
[1741463517357,0.32506387,86625.0,86624.0,0.00238625]
[1741463518030,0.48318187,86625.0,86624.0,0.00238625]
[1741463518193,0.50129573,86625.0,86624.0,0.00238625]
[1741463519465,0.48584773,86625.0,86624.0,0.00038625]
[1741463519673,0.47114773,86625.0,86624.0,0.00038625]
[1741463519874,0.47114773,86625.0,86624.0,0.00138625]
[1741463520331,0.48568858,86625.0,86624.0,0.00138625]
[1741463520542,0.0763,86619.0,86601.0,0.001]
[1741463520744,0.4963,86602.0,86601.0,0.00111564]
[1741463521363,0.51441892,86602.0,86601.0,0.00111564]
[1741463522225,1.08138592,86602.0,86601.0,0.00111564]
[1741463522425,1.33250877,86602.0,86601.0,0.00111564]
[1741463522706,1.29181577,86602.0,86601.0,0.00111564]
[1741463522906,0.97643677,86602.0,86601.0,0.00111564]
[1741463523635,0.97643677,86602.0,86601.0,0.00211564]
[1741463523994,0.98516744,86602.0,86601.0,0.00211564]
[1741463526356,1.02480643,86602.0,86601.0,0.00245524]
[1741463526558,1.00668751,86602.0,86601.0,0.00245524]
[1741463526715,0.55921051,86602.0,86601.0,0.00245524]
[1741463526936,1.70879151,86602.0,86601.0,0.00245524]
[1741463527347,1.38235751,86602.0,86601.0,0.00245524]
[1741463527544,1.31629551,86602.0,86601.0,0.00145524]
[1741463527948,1.31929551,86602.0,86601.0,0.00145524]
[1741463528355,1.38882551,86602.0,86601.0,0.00145524]
[1741463528600,1.31929551,86602.0,86601.0,0.00145524]
[1741463529531,1.33741512,86602.0,86601.0,0.00145524]
[1741463530085,0.93090213,86602.0,86601.0,0.00145524]
[1741463530281,0.64592113,86602.0,86601.0,0.00145524]
[1741463530706,0.52615028,86602.0,86601.0,0.00145524]
[1741463531734,0.52315028,86602.0,86601.0,0.00145524]
[1741463532170,0.52615028,86602.0,86601.0,0.00145524]
[1741463532383,0.32985028,86602.0,86601.0,0.00145524]
[1741463532573,0.32111961,86602.0,86601.0,0.01300224]
[1741463532894,0.003,86602.0,86601.0,0.01300224]
[1741463533231,0.003,86602.0,86601.0,0.00145524]
[1741463533451,0.014547,86602.0,86601.0,0.00145524]
[1741463533649,0.011547,86602.0,86601.0,0.00145524]
[1741463534105,0.012547,86602.0,86601.0,0.00145524]
[1741463534322,0.011547,86602.0,86601.0,0.00145524]
[1741463534734,0.011547,86602.0,86601.0,0.00345524]
[1741463535342,0.18475,86604.0,86601.0,0.00345524]
[1741463535594,0.196296,86604.0,86601.0,0.00345524]
[1741463535948,0.214414,86604.0,86601.0,0.00345524]
[1741463536555,0.029664,86604.0,86601.0,0.00345524]
[1741463536753,0.029664,86604.0,86601.0,0.00145524]
[1741463536999,0.214413,86604.0,86601.0,0.00145524]
[1741463537187,0.196292,86606.0,86601.0,0.01400224]
[1741463537788,0.011546,86605.0,86601.0,0.00245524]
[1741463537992,0.011547,86602.0,86601.0,0.00245524]
[1741463538374,0.011547,86602.0,86601.0,0.00145524]
[1741463538694,0.011547,86602.0,86601.0,0.00245524]
[1741463539915,0.196294,86604.0,86601.0,0.00245524]
[1741463540069,0.01811791,86602.0,86601.0,0.00145524]
[1741463540475,0.01811791,86602.0,86601.0,0.00345524]
[1741463546557,0.01811791,86602.0,86601.0,0.08585524]
[1741463546814,0.01811791,86602.0,86601.0,0.09740224]
[1741463554752,0.0001699,86611.0,86610.0,0.011546]
[1741463555305,0.0001699,86611.0,86610.0,0.196282]
[1741463555508,0.0001699,86611.0,86610.0,0.406642]
[1741463555691,0.0001699,86611.0,86610.0,0.452642]
[1741463556544,0.0011699,86611.0,86610.0,0.452642]
[1741463556946,0.0001699,86611.0,86610.0,0.452642]
[1741463557400,0.0001699,86611.0,86610.0,0.454642]
[1741463558149,0.01828417,86611.0,86610.0,0.454642]
[1741463563736,0.011543,86630.0,86610.0,0.443096]
[1741463563942,0.011543,86627.0,86620.0,0.011544]
[1741463564095,0.011543,86627.0,86621.0,0.12664]
[1741463564300,0.196243,86627.0,86621.0,0.12664]
[1741463565031,0.01310562,86630.0,86624.0,0.011544]
[1741463565190,0.184687,86633.0,86626.0,0.184702]
[1741463565388,0.196224,86636.0,86629.0,0.011543]
[1741463565587,0.011542,86635.0,86629.0,0.011543]
[1741463565907,0.196226,86634.0,86628.0,0.011543]
[1741463566684,0.011542,86635.0,86629.0,0.011543]
[1741463566997,0.011542,86637.0,86629.0,0.011543]
[1741463567203,0.0181128,86634.0,86630.0,0.011543]
[1741463569358,0.0181128,86634.0,86630.0,0.196235]
[1741463569967,0.2143398,86634.0,86629.0,0.011543]
[1741463570168,0.0296548,86634.0,86629.0,0.011543]
[1741463571506,0.3181128,86634.0,86629.0,0.011543]
[1741463571689,0.196229,86633.0,86628.0,0.19624]
[1741463572066,0.196229,86633.0,86630.0,0.0003396]
[1741463573072,0.011543,86631.0,86630.0,0.0003396]
[1741463579750,0.3296571,86631.0,86630.0,0.0003396]
[1741463581919,0.311543,86631.0,86630.0,0.0003396]
[1741463585367,0.32982719,86631.0,86630.0,0.0003396]
[1741463586316,0.02982719,86631.0,86630.0,0.0003396]
[1741463586451,0.0117128,86631.0,86630.0,0.0003396]
[1741463589846,0.02982743,86631.0,86630.0,0.0003396]
[1741463590072,0.0117128,86631.0,86630.0,0.0003396]
[1741463594809,0.1395128,86631.0,86630.0,0.0003396]
[1741463595214,0.4395128,86631.0,86630.0,0.0003396]
[1741463597196,0.45762783,86631.0,86630.0,0.0003396]
[1741463597411,0.44180539,86631.0,86630.0,0.0003396]
[1741463597984,0.45334839,86631.0,86630.0,0.0003396]
[1741463598189,0.43540316,86631.0,86630.0,0.0003396]
[1741463599319,0.3117128,86631.0,86630.0,0.0003396]
[1741463600763,0.311547,86602.0,86601.0,0.0013396]
[1741463600966,0.311547,86602.0,86601.0,0.1246996]
[1741463601540,0.32966456,86602.0,86601.0,0.1246996]
[1741463601942,0.32966456,86602.0,86601.0,0.0013396]
[1741463602155,0.34297424,86602.0,86601.0,0.0013396]
[1741463602690,0.32485668,86602.0,86601.0,0.0013396]
[1741463602883,0.32485668,86602.0,86601.0,0.0083396]
[1741463604942,0.01330968,86602.0,86601.0,0.0083396]
[1741463605108,0.184752,86603.0,86601.0,0.0083396]
[1741463605727,0.011547,86602.0,86601.0,0.0083396]
[1741463606149,0.011547,86602.0,86601.0,0.0013396]
[1741463606573,0.011547,86602.0,86601.0,0.0083396]
[1741463606868,0.011547,86602.0,86601.0,0.0013396]
[1741463607081,0.011547,86602.0,86601.0,0.0083396]
[1741463607449,0.32503803,86602.0,86601.0,0.0013396]
[1741463607633,0.311547,86602.0,86601.0,0.0013396]
[1741463608598,0.311547,86602.0,86601.0,0.0063396]
[1741463609579,0.32966595,86602.0,86601.0,0.0063396]
[1741463610048,0.34281253,86602.0,86601.0,0.0063396]
[1741463613507,0.02469358,86602.0,86601.0,0.0822396]
[1741463613732,0.32469358,86602.0,86601.0,0.1286396]
[1741463613860,0.31314658,86602.0,86601.0,0.1286396]
[1741463614900,0.184724,86616.0,86601.0,0.1286396]
[1741463614901,0.011544,86620.0,86609.0,0.0759]
[1741463615108,0.184712,86621.0,86613.0,0.196273]
[1741463615310,0.196256,86621.0,86614.0,0.0759]
[1741463615504,0.011543,86626.0,86616.0,0.011545]
[1741463615711,0.19624,86628.0,86622.0,0.0759]
[1741463615911,0.011544,86623.0,86622.0,0.0759]
[1741463616275,0.311544,86623.0,86622.0,0.0759]
[1741463616851,0.32965877,86623.0,86622.0,0.0759]
[1741463617003,0.32965877,86623.0,86622.0,0.0749]
[1741463617387,0.32965877,86623.0,86622.0,0.0759]
[1741463617814,0.311544,86623.0,86622.0,0.0759]
[1741463620207,0.0001699,86623.0,86622.0,0.0759]
[1741463620380,0.0001699,86623.0,86622.0,0.087444]
[1741463620963,0.01828393,86623.0,86622.0,0.08755964]
[1741463621371,0.01828393,86623.0,86622.0,0.07601564]
[1741463621372,0.02982793,86623.0,86622.0,0.07601564]
[1741463626151,0.02982793,86623.0,86622.0,0.00111564]
[1741463627443,0.484704,86625.0,86622.0,0.00111564]
[1741463627669,0.184706,86624.0,86622.0,0.00111564]
[1741463627995,0.011544,86623.0,86622.0,0.00111564]
[1741463628400,0.011544,86623.0,86622.0,0.00011564]
[1741463628592,0.011544,86623.0,86622.0,0.00111564]
[1741463628894,0.011544,86623.0,86622.0,0.00011564]
[1741463629277,0.011544,86623.0,86622.0,0.00111564]
[1741463630593,0.311544,86623.0,86622.0,0.00111564]
[1741463630796,0.32965902,86623.0,86622.0,0.00111564]
[1741463632014,0.32965902,86623.0,86622.0,0.00145524]
[1741463640313,0.196297,86603.0,86602.0,0.0829]
[1741463641369,0.011547,86602.0,86601.0,0.0013396]
[1741463643008,0.011547,86602.0,86601.0,0.0063396]
[1741463656603,0.011547,86602.0,86601.0,0.00385474]
[1741463657145,0.12620026,86605.0,86601.0,0.00385474]
[1741463657324,0.184751,86603.0,86601.0,0.00385474]
[1741463657531,0.01811797,86602.0,86601.0,0.00385474]
[1741463657745,0.184751,86603.0,86601.0,0.00385474]
[1741463657905,0.011547,86602.0,86601.0,0.00385474]
[1741463659410,0.011546,86603.0,86596.0,0.132587]
[1741463659617,0.13774626,86605.0,86598.0,0.011547]
[1741463659927,0.13774626,86605.0,86601.0,0.004]
[1741463659928,0.011546,86604.0,86601.0,0.004]
[1741463660135,0.011546,86604.0,86598.0,0.011547]
[1741463660460,0.011546,86604.0,86601.0,0.004]
[1741463660613,0.01811698,86603.0,86598.0,0.011547]
[1741463661456,0.21441498,86603.0,86597.0,0.011547]
[1741463661815,0.011547,86602.0,86597.0,0.011547]
[1741463662020,0.196302,86601.0,86598.0,0.003]
[1741463662438,0.196302,86601.0,86596.0,0.12012]
[1741463662842,0.196302,86601.0,86597.0,0.004]
[1741463663179,0.196302,86601.0,86596.0,0.12012]
[1741463663383,0.196302,86601.0,86598.0,0.005]
[1741463663586,0.011547,86600.0,86598.0,0.005]
[1741463663763,0.011547,86600.0,86596.0,0.12012]
[1741463663965,0.196306,86599.0,86596.0,0.12012]
[1741463664168,0.196306,86599.0,86597.0,0.005]
[1741463664324,0.196302,86601.0,86597.0,0.005]
[1741463664784,0.196306,86599.0,86597.0,0.005]
[1741463665906,0.196306,86599.0,86596.0,0.12012]
[1741463666303,0.196306,86599.0,86598.0,0.005]
[1741463666505,0.196306,86599.0,86598.0,0.00380618]
[1741463666711,0.196306,86599.0,86596.0,0.12012]
[1741463667108,0.196306,86599.0,86597.0,0.005]
[1741463667315,0.196306,86599.0,86596.0,0.12012]
[1741463667694,0.196306,86599.0,86598.0,0.005]
[1741463669152,0.011547,86600.0,86598.0,0.005]
[1741463669292,0.011547,86600.0,86597.0,0.0003398]
[1741463669675,0.011547,86602.0,86597.0,0.0053398]
[1741463669829,0.011547,86602.0,86597.0,0.0003398]
[1741463670026,0.011547,86602.0,86598.0,0.005]
[1741463670551,0.011547,86602.0,86597.0,0.0003398]
[1741463671057,0.21441398,86603.0,86597.0,0.0053398]
[1741463671199,0.21441398,86603.0,86597.0,0.0003398]
[1741463671591,0.02966298,86603.0,86597.0,0.0003398]
[1741463671808,0.01811698,86603.0,86602.0,0.011547]
[1741463672015,0.3,86615.0,86614.0,0.011545]
[1741463672217,0.3,86615.0,86612.0,0.0793]
[1741463674364,0.3,86615.0,86613.0,0.011545]
[1741463674767,9.774e-05,86623.0,86618.0,0.011544]
[1741463674971,0.0117138,86622.0,86615.0,0.011545]
[1741463675173,0.0117138,86622.0,86616.0,0.011545]
[1741463675386,0.02965886,86621.0,86616.0,0.060745]
[1741463675590,0.01811486,86621.0,86620.0,0.011544]
[1741463676539,0.0001698,86622.0,86620.0,0.011544]
[1741463676749,0.0001698,86622.0,86621.0,0.011544]
[1741463678852,0.0001698,86622.0,86620.0,0.001]
[1741463679054,0.0001698,86622.0,86620.0,0.012544]
[1741463679259,0.0001698,86622.0,86620.0,0.011544]
[1741463679461,0.01828426,86622.0,86621.0,0.011544]
[1741463679674,0.01828426,86622.0,86621.0,0.012544]
[1741463679833,0.01828426,86622.0,86621.0,0.011544]
[1741463680441,0.01828426,86622.0,86620.0,0.011544]
[1741463681054,0.01828426,86622.0,86621.0,0.001]
[1741463682865,0.01828426,86622.0,86618.0,0.011544]
[1741463683281,0.01828426,86622.0,86620.0,0.001]
[1741463683479,0.01828426,86622.0,86619.0,0.011544]
[1741463683907,0.01828426,86622.0,86621.0,0.001]
[1741463684108,0.01828426,86622.0,86619.0,0.011544]
[1741463684551,0.01828426,86622.0,86620.0,0.00930682]
[1741463686053,0.01828426,86622.0,86621.0,0.001]
[1741463686929,0.01828426,86622.0,86620.0,0.011544]
[1741463687310,0.01828426,86622.0,86620.0,0.001]
[1741463687516,0.01828426,86622.0,86617.0,0.011545]
[1741463687753,0.01828426,86622.0,86618.0,0.196263]
[1741463687977,0.01828426,86622.0,86619.0,0.011544]
[1741463688203,0.01828426,86622.0,86621.0,0.001]
[1741463689579,0.20299426,86622.0,86617.0,0.011545]
[1741463690062,0.20299426,86622.0,86617.0,0.012545]
[1741463690272,0.20299426,86622.0,86617.0,0.011545]
[1741463690473,0.21453826,86622.0,86617.0,0.011545]
[1741463690676,0.21453826,86622.0,86621.0,0.001]
[1741463690881,0.21453826,86622.0,86617.0,0.011545]
[1741463691246,0.21453826,86622.0,86617.0,0.012545]
[1741463691449,0.011544,86621.0,86617.0,0.001]
[1741463692750,0.011544,86621.0,86616.0,0.0492]
[1741463693200,0.011544,86621.0,86617.0,0.002]
[1741463693617,0.21453826,86622.0,86617.0,0.013545]
[1741463693789,0.21453826,86622.0,86617.0,0.011545]
[1741463693969,0.02982826,86622.0,86617.0,0.196265]
[1741463694175,0.01828426,86622.0,86617.0,0.196265]
[1741463694562,0.01828426,86622.0,86617.0,0.1966048]
[1741463694841,0.01828426,86622.0,86619.0,0.19626]
[1741463695041,0.01828426,86622.0,86621.0,0.196256]
[1741463695246,0.01828426,86622.0,86621.0,0.274756]
[1741463695447,0.0001698,86622.0,86621.0,0.274756]
[1741463695677,0.0001698,86622.0,86621.0,0.321156]
[1741463696623,0.0001698,86622.0,86621.0,0.325156]
[1741463697550,0.0001698,86622.0,86621.0,0.321156]
[1741463697864,0.0001698,86622.0,86621.0,0.326156]
[1741463698520,0.01828012,86622.0,86621.0,0.326156]
[1741463699081,0.01828012,86622.0,86621.0,0.321156]
[1741463699457,0.01828012,86622.0,86621.0,0.326156]
[1741463699662,0.01828012,86622.0,86621.0,0.321156]
[1741463700073,0.01828012,86622.0,86621.0,0.326156]
[1741463700298,0.01828012,86622.0,86621.0,0.868556]
[1741463709488,0.01828012,86622.0,86621.0,0.986996]
[1741463712292,0.01828012,86622.0,86621.0,0.444596]
[1741463716420,0.21453412,86622.0,86621.0,0.005]
[1741463716623,0.0001698,86622.0,86621.0,0.12412]
[1741463716848,0.0001698,86622.0,86621.0,0.005]
[1741463716979,0.0001698,86622.0,86621.0,0.12412]
[1741463717400,0.0117138,86622.0,86621.0,0.12412]
[1741463717807,0.0117138,86622.0,86621.0,0.005]
[1741463718008,0.0933138,86622.0,86621.0,0.005]
[1741463719198,0.0933138,86622.0,86620.0,0.0003398]
[1741463719402,0.196256,86621.0,86620.0,0.0003398]
[1741463720719,0.196256,86621.0,86620.0,0.0043398]
[1741463720923,0.496256,86621.0,86620.0,0.0043398]
[1741463723122,0.496256,86621.0,86620.0,0.0003398]
[1741463723517,0.695828,86621.0,86620.0,0.0003398]
[1741463723713,0.773328,86621.0,86620.0,0.0003398]
[1741463726236,0.78786885,86621.0,86620.0,0.0003398]
[1741463726864,0.55925743,86621.0,86620.0,0.0003398]
[1741463727345,0.74596943,86621.0,86620.0,0.0003398]
[1741463727804,0.75751343,86621.0,86620.0,0.0003398]
[1741463729483,0.196294,86604.0,86603.0,0.10172296]
[1741463729686,0.196306,86599.0,86597.0,0.0003398]
[1741463730341,0.21442387,86599.0,86597.0,0.0003398]
[1741463730511,0.23021138,86599.0,86597.0,0.0003398]
[1741463731265,0.23021138,86599.0,86598.0,0.0053398]
[1741463732007,0.53021138,86599.0,86598.0,0.0053398]
[1741463732566,0.87633151,86599.0,86598.0,0.0053398]
[1741463732773,0.71689751,86599.0,86598.0,0.0053398]
[1741463733153,0.71689751,86599.0,86598.0,0.0003398]
[1741463733361,0.71889751,86599.0,86598.0,0.0003398]
[1741463733630,0.51409351,86599.0,86598.0,0.0003398]
[1741463733810,0.51209351,86599.0,86598.0,0.0003398]
[1741463733988,0.51409351,86599.0,86598.0,0.0003398]
[1741463735735,0.53221333,86599.0,86598.0,0.0003398]
[1741463749356,0.196328,86589.0,86588.0,0.06189965]
[1741463750340,0.196336,86586.0,86581.0,0.001]
[1741463750516,0.196336,86586.0,86585.0,0.00511568]
[1741463752477,0.21445687,86586.0,86585.0,0.00511568]
[1741463753054,0.21445687,86586.0,86585.0,0.00711568]
[1741463753460,0.196336,86586.0,86585.0,0.00711568]
[1741463754184,0.196336,86586.0,86585.0,0.00745548]
[1741463756725,0.0181205,86586.0,86585.0,0.00745548]
[1741463758330,0.0296695,86586.0,86585.0,0.00745548]
[1741463764090,0.0181205,86586.0,86585.0,0.08815548]
[1741463765450,0.0296695,86586.0,86585.0,0.08815548]
[1741463769232,0.184784,86589.0,86585.0,0.08815548]
[1741463769425,0.02967049,86586.0,86585.0,0.08815548]
[1741463769632,0.01812149,86586.0,86585.0,0.08815548]
[1741463769791,0.011548,86590.0,86585.0,0.08815548]
[1741463771012,0.011548,86590.0,86585.0,0.08615548]
[1741463771207,0.3,86594.0,86585.0,0.08615548]
[1741463771398,0.184777,86591.0,86585.0,0.08615548]
[1741463772003,0.011548,86590.0,86585.0,0.08615548]
[1741463772419,0.01812068,86589.0,86585.0,0.08615548]
[1741463773652,0.011548,86590.0,86585.0,0.08615548]
[1741463774517,0.011547,86598.0,86591.0,0.011548]
[1741463774716,0.011547,86598.0,86590.0,0.011548]
[1741463774717,0.19631,86597.0,86592.0,0.0481]
[1741463774922,0.196316,86595.0,86592.0,0.0481]
[1741463775074,0.011548,86594.0,86592.0,0.0481]
[1741463775272,0.011547,86598.0,86592.0,0.0481]
[1741463775479,0.01578751,86599.0,86594.0,0.0802]
[1741463775680,0.011547,86600.0,86594.0,0.0802]
[1741463775882,0.184759,86599.0,86594.0,0.0802]
[1741463776248,0.196306,86599.0,86594.0,0.0802]
[1741463776454,0.01811959,86598.0,86594.0,0.0802]
[1741463776891,0.01811959,86598.0,86597.0,0.011547]
[1741463777140,0.01811959,86598.0,86597.0,0.088747]
[1741463777345,0.01811959,86598.0,86597.0,0.137647]
[1741463779024,0.01811959,86598.0,86597.0,0.1261]
[1741463781688,0.011548,86595.0,86588.0,0.094448]
[1741463781841,0.011548,86591.0,86589.0,0.1188]
[1741463782043,0.184778,86590.0,86589.0,0.1188]
[1741463782246,0.196326,86590.0,86589.0,0.1188]
[1741463784271,0.011548,86591.0,86589.0,0.1188]
[1741463784720,0.011548,86591.0,86589.0,0.1218]
[1741463784917,0.011548,86591.0,86589.0,0.003]
[1741463784918,0.196326,86590.0,86589.0,0.003]
[1741463785526,0.196326,86590.0,86585.0,0.00545548]
[1741463785896,0.196326,86590.0,86589.0,0.003]
[1741463786342,0.196326,86590.0,86585.0,0.00545548]
[1741463786501,0.011548,86590.0,86585.0,0.00545548]
[1741463786698,0.09741516,86592.0,86585.0,0.00545548]
[1741463787088,0.0181205,86589.0,86585.0,0.00545548]
[1741463787484,0.011549,86586.0,86585.0,0.00545548]
[1741463788450,0.011549,86586.0,86585.0,0.00945548]
[1741463788801,0.011549,86586.0,86585.0,0.00545548]
[1741463789219,0.011549,86586.0,86585.0,0.00945548]
[1741463798762,0.011549,86587.0,86585.0,0.00945548]
[1741463799401,0.196336,86586.0,86585.0,0.00945548]
[1741463800987,0.196336,86586.0,86585.0,0.00545548]
[1741463801190,0.196336,86586.0,86585.0,0.00945548]
[1741463801504,0.196336,86586.0,86585.0,0.00545548]
[1741463801839,0.196336,86586.0,86585.0,0.00945548]
[1741463805059,0.196336,86586.0,86585.0,0.00545548]
[1741463805415,0.196336,86586.0,86585.0,0.00645548]
[1741463807340,0.21445706,86586.0,86585.0,0.00645548]
[1741463809377,0.14832161,86588.0,86585.0,0.00645548]
[1741463809775,0.01812118,86586.0,86585.0,0.00645548]
[1741463810179,0.21445718,86586.0,86585.0,0.00645548]
[1741463810563,0.21445718,86586.0,86585.0,0.00545548]
[1741463811799,0.21445718,86586.0,86585.0,0.00645548]
[1741463812784,0.29027685,86586.0,86585.0,0.00645548]
[1741463815308,0.50879685,86586.0,86585.0,0.00645548]
[1741463815721,0.8269184,86586.0,86585.0,0.00645548]
[1741463816024,0.80879685,86586.0,86585.0,0.00645548]
[1741463816226,0.78460185,86586.0,86585.0,0.00645548]
[1741463816477,0.80272355,86586.0,86585.0,0.00645548]
[1741463817523,0.80272355,86586.0,86571.0,0.0004]
[1741463817524,0.011551,86572.0,86571.0,0.0004]
[1741463817737,0.21090885,86572.0,86571.0,0.0004]
[1741463818230,0.22903374,86572.0,86571.0,0.0004]
[1741463818894,0.22903374,86572.0,86571.0,0.0044]
[1741463819512,0.56873315,86572.0,86571.0,0.0044]
[1741463819714,2.28902415,86572.0,86571.0,0.0044]
[1741463819889,2.20105015,86572.0,86571.0,0.0044]
[1741463820442,2.20105015,86572.0,86571.0,1e-06]
[1741463820683,2.16845717,86572.0,86571.0,1e-06]
[1741463820904,2.18658422,86572.0,86571.0,1e-06]
[1741463821143,2.17206922,86572.0,86571.0,1e-06]
[1741463821341,0.196374,86569.0,86568.0,0.0003398]
[1741463821744,0.23607341,86569.0,86568.0,0.0003398]
[1741463822076,2.26278841,86569.0,86568.0,0.0003398]
[1741463822283,1.79485841,86569.0,86551.0,0.0004]
[1741463822483,0.19639,86562.0,86551.0,0.0004]
[1741463822619,0.21093085,86562.0,86551.0,0.0004]
[1741463824635,0.21093085,86562.0,86561.0,0.002]
[1741463825083,0.21093085,86562.0,86561.0,0.001]
[1741463825255,3.4021966,86562.0,86561.0,0.001]
[1741463825455,1.6163746,86562.0,86561.0,0.001]
[1741463826091,0.196412,86552.0,86551.0,0.0004]
[1741463826892,0.21454206,86552.0,86551.0,0.0004]
[1741463829487,0.22878436,86552.0,86551.0,0.0004]
[1741463830640,0.03237236,86552.0,86551.0,0.0806]
[1741463830837,0.04392536,86552.0,86551.0,0.1299]
[1741463833053,0.03237236,86552.0,86551.0,0.1299]
[1741463833524,0.04392536,86552.0,86551.0,0.1299]
[1741463833923,0.03237236,86552.0,86551.0,0.1299]
[1741463835560,0.196402,86557.0,86551.0,0.1299]
[1741463835561,0.011552,86565.0,86554.0,0.011553]
[1741463835759,0.011552,86565.0,86559.0,0.0802]
[1741463835760,0.011552,86564.0,86559.0,0.0802]
[1741463835971,0.011552,86564.0,86560.0,0.11664]
[1741463836163,0.011552,86565.0,86560.0,0.11664]
[1741463836361,0.011551,86567.0,86561.0,0.18484]
[1741463836545,0.011551,86567.0,86561.0,0.275592]
[1741463836962,0.011551,86566.0,86561.0,0.275592]
[1741463837157,0.011551,86566.0,86561.0,0.0792]
[1741463837363,0.02558559,86562.0,86561.0,0.0792]
[1741463838737,0.04371246,86562.0,86561.0,0.0792]
[1741463841929,0.04371246,86562.0,86558.0,0.0496398]
[1741463841930,0.04371246,86562.0,86558.0,0.0003398]
[1741463842137,0.011552,86559.0,86558.0,0.0003398]
[1741463843206,1.118655,86559.0,86558.0,0.0003398]
[1741463844080,1.011728,86559.0,86558.0,0.0003398]
[1741463844274,0.65048,86559.0,86558.0,0.0003398]
[1741463844562,0.635925,86559.0,86558.0,0.0003398]
[1741463845632,0.65405412,86559.0,86558.0,0.0003398]
[1741463847135,0.67724436,86559.0,86558.0,0.0003398]
[1741463853667,0.35287136,86559.0,86558.0,0.0003398]
[1741463854280,1.25267136,86559.0,86558.0,0.0003398]
[1741463854417,1.31426136,86559.0,86558.0,0.0003398]
[1741463861313,1.29613224,86559.0,86558.0,0.0003398]
[1741463861480,1.02843624,86559.0,86558.0,0.0003398]
[1741463862125,1.01373624,86559.0,86558.0,0.0003398]
[1741463862272,0.93898024,86559.0,86558.0,0.0003398]
[1741463864811,0.91276824,86559.0,86558.0,0.0003398]
[1741463867215,1.01695344,86559.0,86558.0,0.0003398]
[1741463867611,0.70540144,86559.0,86558.0,0.0003398]
[1741463868028,0.71695344,86559.0,86558.0,0.0003398]
[1741463870070,1.01695344,86559.0,86558.0,0.0003398]
[1741463871710,1.00639528,86559.0,86558.0,8e-07]
[1741463871978,0.496412,86552.0,86551.0,0.0004]
[1741463872384,0.51095285,86552.0,86551.0,0.0004]
[1741463874426,0.496412,86552.0,86551.0,0.0004]
[1741463887453,0.496412,86552.0,86551.0,0.0007398]
[1741463888731,1.74356,86552.0,86551.0,0.0007398]
[1741463889077,1.991799,86552.0,86551.0,0.0007398]
[1741463889280,0.496412,86552.0,86551.0,0.0007398]
[1741463889784,1.164394,86552.0,86551.0,0.0007398]
[1741463890067,1.029492,86552.0,86551.0,0.0007398]
[1741463890998,1.0416431,86552.0,86551.0,0.0007398]
[1741463891923,0.9596881,86552.0,86551.0,0.0007398]
[1741463892127,0.9493281,86552.0,86551.0,0.0007398]
[1741463892832,0.9109941,86552.0,86551.0,0.0007398]
[1741463893907,0.898843,86552.0,86551.0,0.0007398]
[1741463895117,0.311553,86551.0,86543.0,0.0003396]
[1741463895339,1.024641,86551.0,86543.0,0.0003396]
[1741463895496,0.972068,86551.0,86543.0,0.0003396]
[1741463895693,0.711107,86551.0,86543.0,0.0003396]
[1741463900021,0.311553,86551.0,86543.0,0.0003396]
[1741463900155,1.070424,86551.0,86543.0,0.0003396]
[1741463900497,0.818977,86551.0,86543.0,0.0003396]
[1741463901080,0.818977,86551.0,86550.0,0.0053398]
[1741463901257,0.8191469,86551.0,86550.0,0.0053398]
[1741463901600,0.6858849,86551.0,86550.0,0.0053398]
[1741463902403,0.6640749,86551.0,86550.0,0.0053398]
[1741463902789,0.6269009,86551.0,86550.0,0.0053398]
[1741463906085,0.196431,86544.0,86543.0,0.0003396]
[1741463906288,0.678026,86544.0,86543.0,0.0003396]
[1741463906494,0.809681,86544.0,86543.0,0.0003396]
[1741463907416,0.777602,86544.0,86543.0,0.0003396]
[1741463907631,0.749422,86544.0,86543.0,0.0003396]
[1741463908735,1.049422,86544.0,86543.0,0.0003396]
[1741463908948,1.06396285,86544.0,86543.0,0.0003396]
[1741463910164,0.51098085,86540.0,86539.0,0.0131987]
[1741463910815,1.00476685,86540.0,86539.0,0.0131987]
[1741463911226,1.00476685,86540.0,86529.0,0.0758]
[1741463911227,0.311556,86532.0,86531.0,0.0058179]
[1741463911427,0.311556,86530.0,86529.0,0.0758]
[1741463912188,0.011557,86523.0,86522.0,0.0758]
[1741463912402,0.496478,86523.0,86522.0,0.0758]
[1741463912575,0.496478,86523.0,86522.0,0.07618577]
[1741463912791,0.496478,86523.0,86522.0,0.07118577]
[1741463915307,0.50985594,86523.0,86522.0,0.07118577]
[1741463919013,0.50985594,86523.0,86522.0,0.00038577]
[1741463919238,1.4456335,86523.0,86522.0,0.00038577]
[1741463919592,3.26345298,86523.0,86522.0,0.00038577]
[1741463919803,1.68437198,86523.0,86522.0,0.00038577]
[1741463920026,0.96045198,86523.0,86522.0,0.00038577]
[1741463920210,0.88136579,86523.0,86522.0,0.00038577]
[1741463921255,1.49780979,86523.0,86522.0,0.00038577]
[1741463921364,1.42826579,86523.0,86522.0,0.00038577]
[1741463921732,0.32609785,86522.0,86521.0,0.00038577]
[1741463922063,0.51103485,86516.0,86515.0,0.00461423]
[1741463922272,3.73937585,86516.0,86515.0,0.00472998]
[1741463925353,3.73937585,86516.0,86515.0,0.00489998]